{"text_format":"3","workbook":"xlsx","n_sheets":9,"sheets":["Annual Report Data","Alternative Fuel LDVs","Alternative Fuel Med-Hvy Veh","LD Emerging Technology Vehicles","HD Emerging Technology Vehicle","Refueling Infrastructure","Alt Fuel Non-Road Eqpmt","Definitions","Lists"],"not_rendered":{"macros":1,"defined_names":97,"comments":6},"read":"whole","date_system":"1900"}

{"sheet":"Annual Report Data","index":0,"n_rows":165,"n_cols":11,"rows_kept":165,"merged":[[0,1,0,12],[1,1,1,13],[2,2,2,12],[3,2,3,12],[15,5,16,6],[26,5,27,7],[30,1,32,3],[35,1,35,2],[37,1,37,2],[39,1,39,2],[41,1,41,2],[41,3,41,7],[42,1,42,2],[42,4,42,6],[44,1,44,2],[44,4,44,6],[46,1,46,2],[46,4,46,6],[48,1,48,2],[48,4,48,6],[50,1,50,2],[50,4,50,6],[52,1,52,2],[52,4,52,6],[54,1,54,2],[54,4,54,6],[56,1,56,2],[56,4,56,6],[58,1,58,2],[58,4,58,6],[60,1,60,2],[61,2,61,6],[63,4,63,5],[64,4,64,5],[66,4,66,5],[67,4,67,5],[68,4,68,5],[69,4,69,5],[70,4,70,5],[71,4,71,5],[73,1,73,2],[75,1,75,2],[75,4,75,11],[77,1,77,2],[77,4,78,11],[81,1,81,2],[81,4,81,11],[83,1,83,2],[85,1,85,2],[87,2,87,4],[90,2,92,2],[94,1,94,2],[94,5,94,6],[95,1,95,2],[95,5,95,6],[96,1,96,2],[96,5,96,6],[106,1,106,6],[108,1,108,2],[109,1,109,2],[109,4,109,6],[110,1,110,2],[111,1,111,2],[112,1,112,2],[112,4,112,6],[113,1,113,2],[114,1,114,2],[115,1,115,2],[116,1,116,2],[116,5,116,6],[116,8,116,9],[117,1,117,2],[117,5,117,6],[117,8,117,9]]}
[null,"Form DOE/FCVT/101: Standard Compliance Reporting Spreadsheet"]
[null,"Alternative Fuel Vehicle Credits"]
[null,null,"Collection of data for this program has been approved by the Office of Management and Budget (OMB). The OMB control number for this activity is 1910-5101 and the expiration date is MM/DD/YYYY.  Respondents are not required to file a reply to any federal collection of information unless it has a valid OMB control number. Public reporting burden for this collection of information is estimated to average 5 hours per response, including the time for reviewing instructions, searching existing data sources, gathering and maintaining the data, and completing and reviewing the collection of information.  Reporting forms and tools for online reporting for state and alternative fuel provider fleets are available at http://www1.eere.energy.gov/vehiclesandfuels/epact/stand_comp_resources.html#guidance "]
[null,null,"To submit your annual report using this spreadsheet form, insert your data into this form and save it on your computer.  Then send the completed spreadsheet file to L-3 Communications at afv_credit_acct@L-3com.com.  You may want to save the original form, before you fill it out, as a distinct file for future use."]
[null,"PLEASE DO NOT CHANGE ANY OF THIS SPREADSHEET'S CELLS (e.g., by moving them or changing their format) OTHER THAN TO INSERT YOUR DATA IN THE APPROPRIATE CELLS. "]
[]
[null,"COLOR KEY",null,"Input cells"]
[{"$nulls":3},"Calculated cells (do not enter values in these cells)"]
[{"$nulls":3},"problem flag (e.g., duplicate VIN numbers)"]
[{"$nulls":3},"Leave blank"]
[]
[]
[null,"Fleet Identification (* required field)",{"$nulls":3},"Point of Contact Information"]
[null,"Fleet ID Number:",{"$nulls":3},"POC ID Number:"]
[null,"*Fleet Name:",{"$nulls":3},"*Name:"]
[null,"Local name:",{"$nulls":3},"Mailing Address (if different from fleet mailing address)"]
[null,"Parent Organization:"]
[null,"*Fleet Type:",null,"S"]
[null,"*Mailing Address:",{"$nulls":3},"City:"]
[{"$nulls":5},"State:"]
[{"$nulls":5},"Zip (xxxxx-xxxx):"]
[null,"*City:",{"$nulls":3},"*Phone:"]
[null,"*State:",{"$nulls":3},"*Fax:"]
[null,"*Zip (xxxxx-xxxx):",{"$nulls":3},"*E-Mail:"]
[null,"(Parent Organization is parent company name, if applicable, for fuel provider fleet or state name for state fleet)"]
[]
[null,null,"Banked Credits:",null,"more info","Optional; Enter the number of banked credits from previous year's report"]
[]
[null,"Publicize Fleet if it has Banked Credits:",null,"Yes","more info"]
[]
[null,"If this is the first year in which you have a vehicle acquisition requirement (first reporting year), you may be able to obtain credit for alternative fuel vehicles you acquired before you were subject to reporting.",null,null,"more info"]
[]
[]
[]
[null,"Model Year Data"]
[null,"Reporting Model Year:",{"$nulls":3},{"$f":"DATE(D36-1,9,1)","v":{"$error":"#NUM!"}},"to",{"$f":"DATE(D36,8,31)","v":"1900-08-31"}]
[]
[null,"Light Duty Vehicles Acquired:",null,null,"more info"]
[]
[null,"Reporting Model Year AFV Acquisition Requirement",null,{"$f":"IF(Fleet_Type=\"S\",ROUND(LDV_count*0.75,0),ROUND(LDV_count*0.9,0))","v":0},"more info"]
[]
[null,"Annual Report Data",null,"All values listed are estimates based on your input. Your report must be validated by the Vehicle Technologies Program"]
[null,"Credits Obtained for Acquisition of Light Duty Altermative Fuel Vehicles",null,null,"Go to  \"Alternative Fuel LDVs\" sheet to enter or view light duty alternative fuel vehicles"]
[]
[null,"Credits Obtained for Acquisition of Light Duty Emerging Technology Vehicles",null,null,"Go to  \"LD Emerging Technology Vehicles\" sheet to enter or view light duty emerging technology alternative fuel vehicles"]
[]
[null,"Credits Obtained for Acquisition of qualifying alternative refueling infrastructure",null,{"$f":"Infrastructure_credits","v":0},"Go to  \"Alternative Refueling Infrastructure\" sheet to enter information"]
[]
[null,"Credits Obtained for Acquisition of qualifying alternative fuel non-road equipment",null,{"$f":"'Alt Fuel Non-Road Eqpmt'!D8","v":0},"Go to  \"Alternative Fuel Non-Road Equipment\" sheet to enter or view non-road equipment information"]
[]
[{"$nulls":3},{"$f":"ROUNDDOWN((Remainder_LDEmerging+Remainder_HDEmerging+Remainder_Infrastructure+Remainder_nonroad)/25000,0)","v":0}]
[]
[null,"Total credits",null,{"$f":"ROUND(D43+D45+D47+D49+D51,0)","v":0},"Sum of all categories rounded to the nearest whole number"]
[]
[null,"Credits Obtained for Acquisition of Medium and Heavy Duty Altermative Fuel Vehicles",null,null,"Go to  \"Alternative Fuel Med-Hvy Veh\" sheet to enter or view medium or heavy duty alternative fuel vehicles"]
[]
[null,"Credits Obtained for Acquisition of Emerging Technology Medium and Heavy Duty Altermative Fuel Vehicles",null,null,"Go to  \"HD Emerging Technology Vehicle\" sheet to enter or view medium or heavy duty alternative fuel vehicles"]
[]
[null,"Total Credits Obtained for Acquisition of Medium and Heavy Duty Altermative Fuel Vehicles",null,{"$f":"ROUND((D55+D57),0)","v":0}]
[]
[null,"Biodiesel Use"]
[null,null,true]
[]
[null,null,"Biodiesel Blend","Percentage of Pure Biodiesel (B100) in Blend (% by volume). Blend must be 20% or more B100","Gallons of Biodiesel Blend Purchased for Use in Reporting Model Year",null,"Gallons of B100"]
[null,"Example","Tank 1 blend",20,2250,null,450]
[]
[null,"Fill in this table","Biodiesel Blend","Percentage of Pure Biodiesel (B100) in Blend (% by volume). Blend must be 20% or more B100","Gallons of Biodiesel Blend Purchased for Use in Reporting Model Year",null,"Gallons of B100"]
[{"$nulls":6},{"$f":"E68*D68/100","v":0}]
[{"$nulls":6},{"$f":"E69*D69/100","v":0}]
[{"$nulls":6},{"$f":"E70*D70/100","v":0}]
[{"$nulls":6},{"$f":"E71*D71/100","v":0}]
[{"$nulls":4},"Total",null,{"$f":"SUM(G68:G71)","v":0}]
[]
[null,"Biodiesel Used (gallons of B100):",null,{"$f":"G72","v":0}]
[]
[null,"Biodiesel Credits",null,{"$f":"IF(Biodiesel_chkVeh=TRUE,ROUND(IF(Fleet_Type = \"B\",MIN(ROUND(Gallons_B100/450,0),Credit_Requirement),MIN(ROUND(Gallons_B100/450,0),ROUNDDOWN(Credit_Requirement/2,0))),0),0)","v":0},{"$f":"IF(Fleet_Type=\"P\",\"One AFV credit is assigned for each 450 gallons of pure biodiesel (B100) use up to 100% of the AFV acquisition requirement\",\"One AFV credit is assigned for each 450 gallons of pure biodiesel (B100) use up to 50% of the AFV acquisition requirement\")&IF(Biodiesel_chkVeh=FALSE,\" Check the biodiesel use checkbox above to get credit\",\"\")","v":"One AFV credit is assigned for each 450 gallons of pure biodiesel (B100) use up to 50% of the AFV acquisition requirement"}]
[]
[null,"Credits Toward Requirement",null,{"$f":"D53+Biodiesel_Credits","v":0},"Credits toward requirement include all light duty AFVs acquired during the model year (as shown on the \"Alternative Fuel LDVs\" sheet) + credits based on investment in alternative fuel infrastructure, emerging technology vehicles, and non-road equipment + Biodiesel (up to applicable limits)"]
[]
[null,null,{"$f":"IF(Earned_credits>=Credit_Requirement,\"Credits to bank = \",\"Credits Needed = \")","v":"Credits to bank = "},{"$f":"IF(Earned_credits>=Credit_Requirement,Earned_credits-Credit_Requirement+D59,Credit_Requirement-Earned_credits)","v":0}]
[]
[null,"Banked Credits Applied:",null,0,{"$f":"IF(Earned_credits<Credit_Requirement,\"You have \"&Banked_credits&\" banked credits available to apply to meet the requirement\",\"You do not need to apply any banked credits to meet the requirement\")","v":"You do not need to apply any banked credits to meet the requirement"}]
[]
[null,"Total earned and applied credits",null,{"$f":"Earned_credits+Applied_credits","v":0}]
[]
[null,"Reporting Model Year Credit Balance",null,{"$f":"IF(Total_Fleet_credits>=Credit_Requirement,Total_Fleet_credits-Credit_Requirement+D59,Total_Fleet_credits-Credit_Requirement)","v":0}]
[]
[null,null,{"$f":"IF(Credit_balance<0,\"Your fleet is deficient by \" & -(Credit_balance) & \" credits. Fill out the credit trade section below before submitting your report\", \"You have met the alternative fuel vehicle requirement and you have \" & Credit_balance & \" credits to bank for next year\")","v":"You have met the alternative fuel vehicle requirement and you have 0 credits to bank for next year"}]
[]
[null,"Credit Trades"]
[null,null,"Credit Trade Status (Check One)"]
[]
[]
[null,null,"Purchases",{"$nulls":3},"Sales"]
[null,"Number of credits purchased or planned",null,0,null,"Number of credits purchased or planned"]
[null,"Selling Fleet",{"$nulls":3},"Purchasing Fleet"]
[null,"Date of Trade",{"$nulls":3},"Date of Trade"]
[]
[]
[]
[]
[null,null,"Final check"]
[]
[null,null,{"$f":"IF(AND(Gallons_B100>0,Biodiesel_chkVeh = FALSE),\"Check the biodiesel checkbox (highlighted in yellow) to receive biodiesel fuel use credits\",\"\")","v":""}]
[null,null,{"$f":"IF(Applied_credits<MIN(Banked_credits,Credit_Requirement-Earned_credits),\"If your fleet is deficient, you must apply banked credits if available. See Applied Credits (highlighted in yellow)\",\"\")","v":""}]
[]
[null,"Credit Activity Report Summary"]
[]
[null,"Alternative Fuel Vehicles Acquired Prior to Reporting",null,{"$f":"D31","v":0}]
[null,"Light Duty Alternative Fuel Vehicle Credits"]
[null,"Credits for acquisition of emerging technology vehicles, alternative fuel refueling infrastructure, and non-road equipment",null,{"$f":"ROUND((D45+D47+D49+D51),0)","v":0}]
[null,"Biodiesel Credits",null,{"$f":"Biodiesel_Credits","v":0}]
[null,"Medium and Heavy Duty Alternative Fuel Vehicle Credits"]
[null,"Banked Credits Applied Toward Requirement",null,{"$f":"Applied_credits","v":0}]
[null,"Credits to Bank",null,{"$f":"IF(Credit_balance<=0,0,Credit_balance)","v":0}]
[null,"Banked Credit Balance",null,{"$f":"Banked_credits-Applied_credits+Credits_to_bank","v":0}]
[null,"Purchased Credits",null,{"$f":"Purchased_credits","v":0},null,{"$f":"IF(D117>0,\"Selling Fleet: \" &D96)","v":false},null,null,{"$f":"IF(D117>0,\"Date of Trade:\",\"\")","v":""},null,{"$f":"IF(D117>0,D97,\"\")","v":""}]
[null,"Credits Sold",null,{"$f":"Credits_sold","v":0},null,{"$f":"IF(D118>0,\"Purchasing Fleet: \" &H96, \"\")","v":""},null,null,{"$f":"IF(D118>0,\"Date of Trade:\",\"\")","v":""},null,{"$f":"IF(D118>0,D98,\"\")","v":""}]
{"$rows_empty":44}
[null,"Notes:"]
[null,"1. Acquisition dates must not be earlier than 10/24/92 or later than Aug. 31 of the year for which you are reporting"]
[null,"2. Conversion dates for self-converted vehicles (SCon) must be within 4 months of the acquisition date (except vehicles acquired between 10/14/92 and 8/31/96 that can be converted up to 4 months after the fleet's acquisition reguirements begin)"]

{"sheet":"Alternative Fuel LDVs","index":1,"n_rows":34,"n_cols":15,"rows_kept":34,"merged":[[2,1,2,14],[4,2,4,14],[6,1,6,3],[9,1,9,2]]}
[]
[null,"Light Duty Alternative Fuel Vehicle Data"]
[null,"Vehicles less than or equal to 8,500 lbs gross vehicle weight"]
[null,"Flags"]
[null,null,"Fill out all green fields to receive credit. Duplicate VIN numbers and conversion dates outside the allowable time period will be highlighted"]
[]
[null,"back to Annual Report Data sheet"]
[]
[null,"Total Credits"]
[null,"Vehicles with missing or potentially invalid fields"]
[]
[]
[null,"Vehicle Number","Potential Credits","Light Duty Vehicle","Make","Model","Model Year","VIN (17 char, no O, I)","Vehicle Category Code","Engine Configuration","Fuel Type","Acquisition Date","Conversion?","Conversion Date","Zip Code"]
[{"$nulls":8},"more info",null,"more info"]
[null,1,null,"Y"]
[null,2,null,"Y"]
[null,3,null,"Y"]
[null,4,null,"Y"]
[null,5,{"$f":"IF(AND(ISBLANK(E19),ISBLANK(F19),ISBLANK(G19),ISBLANK(H19),ISBLANK(I19),ISBLANK(J19),ISBLANK(K19),ISBLANK(L19),ISBLANK(M19),ISBLANK(N19),ISBLANK(O19)),\"\",IF(IF(OR(ISBLANK(E19),ISBLANK(F19),ISBLANK(G19),ISBLANK(H19),ISBLANK(I19),ISBLANK(J19),ISBLANK(K19),ISBLANK(L19),ISBLANK(M19),ISBLANK(O19)),1,0)+IF(AND(M19=\"Yes\",OR(ISBLANK(N19),ABS(N19-L19)>124)),1,0)=0,VLOOKUP(I19,LDV_Category_Codes,5,FALSE),0))","v":""},"Y"]
[null,6,"","Y"]
[null,7,"","Y"]
[null,8,"","Y"]
[null,9,"","Y"]
[null,10,"","Y"]
[null,11,"","Y"]
[null,12,"","Y"]
[null,13,"","Y"]
[null,14,"","Y"]
[null,15,"","Y"]
[null,16,"","Y"]
[null,17,"","Y"]
[null,18,"","Y"]
[null,19,"","Y"]
[null,20,"","Y"]

{"sheet":"Alternative Fuel Med-Hvy Veh","index":2,"n_rows":26,"n_cols":15,"rows_kept":26,"merged":[[2,1,2,14],[3,2,3,14],[5,1,5,3]]}
[]
[null,"Medium & Heavy Duty Alternative Fuel Vehicle Data"]
[null,"Vehicles greater than 8,500 lbs gross vehicle weight."]
[null,null,"Fill out all green fields to receive credit. Duplicate VIN numbers and conversion dates outside the allowable time period will be highlighted"]
[]
[null,"back to Annual Report Data sheet"]
[]
[null,"Total Credits",null,{"$f":"SUM(C:C)","v":0}]
[]
[null,"Vehicle Number","Credits","Light Duty Vehicle","Make","Model","Model Year","VIN (17 char, no O, I) Duplicate values will be highlighted in yellow","Vehicle Category Code","Engine Configuration","Fuel Type","Acquisition Date","Conversion Mode","Conversion Date","Zip Code"]
[{"$nulls":8},"more info",null,"more info"]
[null,1,null,"N"]
[null,2,null,"N"]
[null,3,{"$f":"IF(AND(ISBLANK(E14),ISBLANK(F14),ISBLANK(G14),ISBLANK(H14),ISBLANK(I14),ISBLANK(J14),ISBLANK(K14),ISBLANK(L14),ISBLANK(M14),ISBLANK(N14),ISBLANK(O14)),\"\",IF(IF(OR(ISBLANK(E14),ISBLANK(F14),ISBLANK(G14),ISBLANK(H14),ISBLANK(I14),ISBLANK(J14),ISBLANK(K14),ISBLANK(L14),ISBLANK(M14),ISBLANK(O14)),1,0)+IF(AND(M14=\"Yes\",OR(ISBLANK(N14),ABS(N14-L14)>124)),1,0)=0,VLOOKUP(I14,MHV_Category_Codes,5,FALSE),0))","v":""},"N"]
[null,4,"","N"]
[null,5,"","N"]
[null,6,"","N"]
[null,7,"","N"]
[null,8,"","N"]
[null,9,"","N"]
[null,10,"","N"]
[null,11,"","N"]
[null,12,"","N"]
[null,13,"","N"]
[null,14,"","N"]
[null,15,"","N"]

{"sheet":"LD Emerging Technology Vehicles","index":3,"n_rows":57,"n_cols":18,"rows_kept":57,"merged":[[2,1,2,11],[3,1,3,11],[4,2,4,11],[5,2,5,17],[7,1,7,4],[8,7,8,8],[9,1,9,4],[10,1,10,4],[12,1,12,4],[13,1,13,4],[14,1,14,4],[15,1,15,4],[16,1,16,4],[18,1,18,4],[20,1,20,5],[22,1,22,4],[23,1,23,4],[25,1,25,4],[26,1,26,4],[28,1,28,4],[29,1,29,4],[33,1,33,3]]}
[]
[null,"Emerging Technology Alternative Fuel Vehicle Data"]
[null,"Pre-production or pre- commercially available vehicles of the following types; Fuel cell electric vehicle (FCEV), hybrid electric vehicle (HEV), medium or heavy duty electric vehicle (HVEV), neighborhood electric vehicle (NEV), plug-in electric drive vehicle (PHEV)"]
[null,"Credits may be based on the number of vehicles purchased (see the vehicle category table for the number of credits) or on the amount invested. For credits based on investment, one credit is alloted per $25,000 investment."]
[null,"more info","Vehicle category table"]
[null,null,"Fill out all green fields to receive credit. Duplicate VIN numbers and conversion dates outside the allowable time period will be highlighted"]
[]
[null,"Total Investment in Eligible Equipment",{"$nulls":5},"Maximum Investment Credit Allocation"]
[{"$nulls":7},"Location reference",null,{"$f":"CELL(\"address\",INDEX(K11:K30,MATCH(MAX(L11:L30),L11:L30,0)))","v":{"$error":"#N/A"}}]
[null,"Total Number of Eligible Emerging Technology Alternative Fuel Vehicles",{"$nulls":5},"Number of vehicles","Cumulative Investment Values Ranked Largest to Smallest based on Weighted Total Investment in Eligible Equipment","Credits Based on Investment for These Vehicles","Credits Based on Vehicle Acquisition for These Vehicles","Total Number of Credits for All Vehicles (maximizing credit for largest investment vehicles)"]
[null,"Total number of potential credits based on acquisition alone",{"$nulls":5},1,{"$nulls":3},{"$f":"IF(AND(J11=0,K11=0),\"\",IF(K11>J11,$F$11,J11+$F$11-K11))","v":""}]
[{"$nulls":7},2,{"$nulls":3},{"$f":"IF(AND(J12=0,K12=0),\"\",IF(K12>J12,$F$11,J12+$F$11-K12))","v":""}]
[null,"Suggested allocation of credits between vehicle acquisition and investment",{"$nulls":3},"more info",null,3,{"$nulls":3},""]
[null,"Number of Vehicles for which credit should be based on investment",{"$nulls":5},4,{"$nulls":3},""]
[null,"Credits based on Investment",{"$nulls":5},5,{"$nulls":3},""]
[null,"Credits based on vehicle acquisition",{"$nulls":3},{"$f":"IF(F14=0,F11,F11-INDIRECT(J9))","v":0},null,6,{"$nulls":3},""]
[null,"Total Number of Credits for Emerging Technology Vehicles",{"$nulls":3},{"$f":"F15+F16","v":0},null,7,{"$nulls":3},""]
[{"$nulls":7},8,{"$nulls":3},""]
[{"$nulls":7},9,{"$nulls":3},""]
[{"$nulls":7},10,{"$nulls":3},""]
[null,"Your selected allocation of credits between vehicle acquistion and investment",{"$nulls":5},11,{"$nulls":3},""]
[{"$nulls":7},12,{"$nulls":3},""]
[null,"Number of Vehicles for which credit is based on investment",{"$nulls":5},13,{"$nulls":3},""]
[null,"Credits based on Investment",{"$nulls":5},14,{"$nulls":3},""]
[{"$nulls":7},15,{"$nulls":3},""]
[null,"Number of vehicles for which credit is based on acquistion",{"$nulls":5},16,{"$nulls":3},""]
[null,"Credits based on acquisition",{"$nulls":5},17,{"$nulls":3},""]
[{"$nulls":7},18,{"$nulls":3},""]
[null,"Total Number of Credits for Emerging Technology Vehicles",{"$nulls":5},19,{"$nulls":3},""]
[{"$nulls":7},20,{"$nulls":3},""]
[]
[]
[]
[null,"back to Annual Report Data sheet"]
[]
[null,"Vehicle Number","Eligible for Credit","Potential Credit Based on Acquisition","Make","Model","Vehicle Manufacture Model Year","VIN (17 char, no O, I) Duplicate VIN numbers will be highlighted in yellow","Vehicle Category Code","Engine Configuration","Fuel Type","Acquisition Date","ZIP code","Investment ($)","Eligible Investment ($)","Base Credit on Investment or Vehicle Acquisition?","Weighted Total Investment in Eligible Equipment","Running total Investment"]
[{"$nulls":8},"more info","more info",{"$nulls":5},"more info"]
[null,1,null,{"$f":"IF(C38=\"Yes\",VLOOKUP(I38,LD_ETV_Category_Codes,5,FALSE),0)","v":0},{"$nulls":9},{"v":30000,"d":"$30,000"},{"$f":"IF(C38=\"Yes\",N38,0)","v":0},"Acquisition",{"$f":"IF(C38=\"No\",0,O38+(1-D38)*25000)","v":{"v":25000,"d":"$25,000"}},{"$f":"IF(P38=\"Investment\",O38+O39,O38)","v":0}]
[null,2,null,0,{"$nulls":9},{"v":30000,"d":"$30,000"},{"$f":"IF(C39=\"Yes\",N39,0)","v":0},"Investment",{"v":25000,"d":"$25,000"},{"$f":"IF(P39=\"Investment\",O39,0)","v":0}]
[null,3,null,0,{"$nulls":9},{"v":10000,"d":"$10,000"},0,"Acquisition",{"v":25000,"d":"$25,000"},{"$f":"IF(P40=\"Investment\",O40,0)","v":0}]
[null,4,null,0,{"$nulls":9},{"v":10000,"d":"$10,000"},0,"Acquisition",{"v":25000,"d":"$25,000"},0]
[null,5,null,0,{"$nulls":9},{"v":20000,"d":"$20,000"},0,"Acquisition",{"v":25000,"d":"$25,000"},0]
[null,6,null,0,{"$nulls":9},{"v":22000,"d":"$22,000"},0,"Investment",{"v":25000,"d":"$25,000"},0]
[null,7,null,{"$f":"IF(C44=\"Yes\",VLOOKUP(I44,LD_ETV_Category_Codes,5,FALSE),0)","v":0},{"$nulls":9},{"v":20000,"d":"$20,000"},0,"Acquisition",{"$f":"IF(C44=\"No\",0,O44+(1-D44)*25000)","v":{"v":25000,"d":"$25,000"}},0]
[null,8,null,0,{"$nulls":9},{"v":25000,"d":"$25,000"},0,"Acquisition",{"v":25000,"d":"$25,000"},0]
[null,9,null,0,{"$nulls":9},{"v":15000,"d":"$15,000"},0,"Investment",{"v":25000,"d":"$25,000"},0]
[null,10,null,0,{"$nulls":9},{"v":20000,"d":"$20,000"},0,"Investment",{"v":25000,"d":"$25,000"},0]
[null,11,null,{"$f":"IF(C48=\"Yes\",VLOOKUP(I48,LD_ETV_Category_Codes,5,FALSE),0)","v":0},{"$nulls":9},{"v":20000,"d":"$20,000"},{"$f":"IF(C48=\"Yes\",N48,0)","v":0},"Investment",{"$f":"IF(C48=\"No\",0,O48+(1-D48)*25000)","v":{"v":25000,"d":"$25,000"}},0]
[null,12,null,{"$f":"IF(C49=\"Yes\",VLOOKUP(I49,LD_ETV_Category_Codes,5,FALSE),0)","v":0},{"$nulls":10},{"$f":"IF(C49=\"Yes\",N49,0)","v":0},null,{"$f":"IF(C49=\"No\",0,O49+(1-D49)*25000)","v":{"v":25000,"d":"$25,000"}},0]
[null,13,null,0,{"$nulls":10},0,null,{"v":25000,"d":"$25,000"},0]
[null,14,null,0,{"$nulls":10},0,null,{"v":25000,"d":"$25,000"},0]
[null,15,null,0,{"$nulls":10},0,null,{"v":25000,"d":"$25,000"},0]
[null,16,null,{"$f":"IF(C53=\"Yes\",VLOOKUP(I53,LD_ETV_Category_Codes,5,FALSE),0)","v":0},{"$nulls":10},{"$f":"IF(C53=\"Yes\",N53,0)","v":0},null,{"$f":"IF(C53=\"No\",0,O53+(1-D53)*25000)","v":{"v":25000,"d":"$25,000"}},0]
[null,17,null,{"$f":"IF(C54=\"Yes\",VLOOKUP(I54,LD_ETV_Category_Codes,5,FALSE),0)","v":0},{"$nulls":10},{"$f":"IF(C54=\"Yes\",N54,0)","v":0},null,{"$f":"IF(C54=\"No\",0,O54+(1-D54)*25000)","v":{"v":25000,"d":"$25,000"}},0]
[null,18,null,0,{"$nulls":10},0,null,{"v":25000,"d":"$25,000"},0]
[null,19,null,0,{"$nulls":10},0,null,{"v":25000,"d":"$25,000"},0]
[null,20,null,0,{"$nulls":10},0,null,{"v":25000,"d":"$25,000"},0]

{"sheet":"HD Emerging Technology Vehicle","index":4,"n_rows":57,"n_cols":17,"rows_kept":57,"merged":[[2,1,2,11],[3,1,3,11],[4,2,4,11],[5,2,5,17],[7,1,7,4],[8,7,8,8],[9,1,9,4],[10,1,10,4],[12,1,12,5],[13,1,13,4],[14,1,14,4],[15,1,15,4],[16,1,16,4],[18,1,19,4],[20,1,20,5],[22,1,23,5],[24,1,24,4],[25,1,25,4],[26,1,26,4],[27,1,27,4],[28,1,28,4],[30,1,30,4],[31,1,31,4],[33,1,33,4]]}
[]
[null,"Medium and Heavy Duty Emerging Technology Alternative Fuel Vehicle Data"]
[null,"Pre-production or pre- commercially available vehicles of the following types; Fuel cell electric vehicle (FCEV), hybrid electric vehicle (HEV), medium or heavy duty electric vehicle (HVEV), neighborhood electric vehicle (NEV), plug-in electric drive vehicle (PHEV)"]
[null,"Credits may be based on the number of vehicles purchased (see the vehicle category table for the number of credits) or on the amount invested. For credits based on investment, one credit is alloted per $25,000 investment. Credit can be obtained for medium and heavy duty vehicles only after the vehicle acquisition requirement has been met."]
[null,"more info","Vehicle category table"]
[null,null,"Fill out all green fields to receive credit. Duplicate VIN numbers and conversion dates outside the allowable time period will be highlighted"]
[]
[null,"Total Investment in Eligible Equipment",{"$nulls":5},"Maximum Investment Credit Allocation"]
[{"$nulls":7},"Location reference",null,{"$f":"CELL(\"address\",INDEX(K11:K30,MATCH(MAX(L11:L30),L11:L30,0)))","v":{"$error":"#N/A"}}]
[null,"Total Number of Eligible Emerging Technology Alternative Fuel Vehicles",{"$nulls":5},"Number of vehicles","Cumulative Investment Values Ranked Largest to Smallest based on Weighted Total Investment in Eligible Equipment","Credits Based on Investment for These Vehicles","Credits Based on Vehicle Acquisition for These Vehicles","Total Number of Credits for All Vehicles (maximizing credit for largest investment vehicles)"]
[null,"Total number of potential credits based on acquisition alone",{"$nulls":5},1,null,{"$f":"IF(I11<50000,0,MIN(ROUNDDOWN(I11/25000,0),5))","v":0},null,{"$f":"IF(AND(J11=0,K11=0),\"\",IF(K11>J11,$F$11,J11+$F$11-K11))","v":""}]
[{"$nulls":7},2,null,{"$f":"IF(I12<50000,0,MIN(ROUNDDOWN(I12/25000,0),5))","v":0},null,{"$f":"IF(AND(J12=0,K12=0),\"\",IF(K12>J12,$F$11,J12+$F$11-K12))","v":""}]
[null,"Suggested allocation of credits between vehicle acquisition and investment",{"$nulls":5},3,null,0,null,""]
[null,"Credits based on Investment",{"$nulls":3},{"$f":"OFFSET(INDIRECT(J9),0,-1)","v":{"$error":"#N/A"}},null,4,null,0,null,""]
[null,"Credits based on vehicle acquisition",{"$nulls":3},{"$f":"IF(F17=0,F11,F11-INDIRECT(J9))","v":{"$error":"#N/A"}},null,5,null,0,null,""]
[null,"Total Number of Credits for Emerging Technology Vehicles",{"$nulls":3},{"$f":"F14+F15","v":{"$error":"#N/A"}},null,6,null,0,null,""]
[null,"Number of Vehicles for which credit should be based on investment",{"$nulls":3},{"$f":"IF(OFFSET(INDIRECT(J9),0,-1)=0,0,OFFSET(INDIRECT(J9),0,-3))","v":{"$error":"#N/A"}},null,7,null,0,null,""]
[{"$nulls":7},8,null,0,null,""]
[{"$nulls":5},{"$f":"IF(F14=5,0,OFFSET(INDIRECT(J9),0,-2)-F14*25000)","v":{"$error":"#N/A"}},null,9,null,0,null,""]
[{"$nulls":7},10,null,0,null,""]
[{"$nulls":7},11,null,0,null,""]
[{"$nulls":7},12,null,0,null,""]
[null,"Your selected allocation of credits between vehicle acquistion and investment",{"$nulls":5},13,null,0,null,""]
[{"$nulls":7},14,null,0,null,""]
[null,"Number of Vehicles for which credit is based on investment",{"$nulls":5},15,null,0,null,""]
[null,"Credits based on Investment",{"$nulls":5},16,null,0,null,""]
[{"$nulls":7},17,null,0,null,""]
[null,"Number of vehicles for which credit is based on acquistion",{"$nulls":5},18,null,0,null,""]
[null,"Credits based on acquisition",{"$nulls":5},19,null,0,null,""]
[{"$nulls":7},20,null,0,null,""]
[null,"Total Number of Credits for Emerging Technology Vehicles",{"$nulls":3},{"$f":"F26+F29","v":0}]
[]
[]
[null,"back to Annual Report Data sheet"]
[]
[null,"Vehicle Number","Eligible for Credit","Potential Credit Based on Acquisition","Make","Model","Vehicle Manufacture Model Year","VIN (17 char, no O, I) Duplicate VIN numbers will be highlighted in yellow","Vehicle Category Code","Engine Configuration","Fuel Type","Acquisition Date","ZIP code","Investment ($)","Eligible Investment ($)","Base Credit on Investment or Vehicle Acquisition?","Weighted Total Investment in Eligible Equipment"]
[{"$nulls":8},"more info","more info",{"$nulls":5},"more info"]
[null,1,{"$f":"IF(OR(ISBLANK(E38),ISBLANK(F38),ISBLANK(G38),ISBLANK(H38),ISBLANK(I38),ISBLANK(J38),ISBLANK(K38),ISBLANK(L38),ISBLANK(M38),ISBLANK(N38),ISBLANK(P38)),\"No\",\"Yes\")","v":"No"}]
[null,2,{"$f":"IF(OR(ISBLANK(E39),ISBLANK(F39),ISBLANK(G39),ISBLANK(H39),ISBLANK(I39),ISBLANK(J39),ISBLANK(K39),ISBLANK(L39),ISBLANK(M39),ISBLANK(N39),ISBLANK(P39)),\"No\",\"Yes\")","v":"No"}]
[null,3,"No"]
[null,4,"No"]
[null,5,"No"]
[null,6,"No"]
[null,7,"No"]
[null,8,"No"]
[null,9,"No"]
[null,10,"No"]
[null,11,"No",{"$f":"IF(C48=\"Yes\",VLOOKUP(I48,HD_ETV_Category_Codes,5,FALSE),0)","v":0},{"$nulls":10},{"$f":"IF(C48=\"Yes\",N48,0)","v":0},null,{"$f":"IF(C48=\"No\",0,O48+(1-D48)*25000)","v":0}]
[null,12,"No",0,{"$nulls":10},0,null,0]
[null,13,{"$f":"IF(OR(ISBLANK(E50),ISBLANK(F50),ISBLANK(G50),ISBLANK(H50),ISBLANK(I50),ISBLANK(J50),ISBLANK(K50),ISBLANK(L50),ISBLANK(M50),ISBLANK(N50),ISBLANK(P50)),\"No\",\"Yes\")","v":"No"},{"$f":"IF(C50=\"Yes\",VLOOKUP(I50,HD_ETV_Category_Codes,5,FALSE),0)","v":0},{"$nulls":10},{"$f":"IF(C50=\"Yes\",N50,0)","v":0},null,{"$f":"IF(C50=\"No\",0,O50+(1-D50)*25000)","v":0}]
[null,14,"No",0,{"$nulls":10},0,null,0]
[null,15,"No",0,{"$nulls":10},0,null,0]
[null,16,"No",0,{"$nulls":10},0,null,0]
[null,17,"No",0,{"$nulls":10},0,null,0]
[null,18,"No",0,{"$nulls":10},0,null,0]
[null,19,"No",0,{"$nulls":10},0,null,0]
[null,20,"No",0,{"$nulls":10},0,null,0]

{"sheet":"Refueling Infrastructure","index":5,"n_rows":33,"n_cols":10,"rows_kept":33,"merged":[[2,1,2,8],[3,2,3,8],[5,5,5,9],[8,1,8,2],[9,1,9,2],[10,1,10,3],[11,1,11,3],[11,5,11,9],[12,1,12,2],[14,1,14,4],[17,1,17,4]]}
[]
[null,"Refueling Infrastructure Investments"]
[null,"Alternative fueling or charging/battery exchange stations"]
[null,null,"Fill out all green fields and check the certifications below to receive credit. Dates outside the allowable time period will be highlighted"]
[]
[{"$nulls":3},"Maximum Number of Credits for the Refueling Infrastructure Category"]
[]
[{"$nulls":3},"Publically Available","Private"]
[null,"Total Investment in Eligible Equipment",null,{"$f":"SUMIF(F:F,\"=Yes\",J:J)","v":0},{"$f":"SUMIF(F:F,\"=No\",J:J)","v":0}]
[null,"Investment Credits",null,{"$f":"MIN(ROUNDDOWN(D9/25000,0),10)","v":0},{"$f":"MIN(ROUNDDOWN(E9/25000,0),5)","v":0}]
[null,{"$f":" \"Total Investment Credits for Model Year \" & 'Annual Report Data'!D36","v":"Total Investment Credits for Model Year "},null,null,{"$f":"MIN(E6,D10+E10)","v":0}]
[{"$nulls":4},{"$f":"IF(Infrastructure_credits=E6,0,IF(D10=10,0,MIN(D9,250000)-D10*25000)+IF(E10=5,0,MIN(E9,125000)-E10*25000))","v":0}]
[null,"back to Annual Report Data sheet"]
[]
[{"$nulls":5},true]
[]
[]
[{"$nulls":5},true]
[]
[null,"Infrastructure Equipment","Eligible for Credit?","Description","Location (address)","Publicly Available?","In-Service Date","Alternative Fuel Type","Investment Amount ($)","Total Investment in Eligible Equipment"]
[{"$nulls":6},"more info"]
[null,1,{"$f":"IF(MIN(IF(OR(ISBLANK(D22),ISBLANK(E22),ISBLANK(F22),ISBLANK(G22),ISBLANK(H22),ISBLANK(I22)),0,1),IF(OR(G22<MYstart,G22>MYend),0,1))=0,\"No\",\"Yes\")","v":{"$error":"#NUM!"}},{"$nulls":6},{"$f":"IF(C22=\"No\",0,I22)","v":{"$error":"#NUM!"}}]
[null,2,{"$error":"#NUM!"},{"$nulls":6},{"$f":"IF(C23=\"No\",0,I23)","v":{"$error":"#NUM!"}}]
[null,3,{"$error":"#NUM!"},{"$nulls":6},{"$f":"IF(C24=\"No\",0,I24)","v":{"$error":"#NUM!"}}]
[null,4,{"$error":"#NUM!"},{"$nulls":6},{"$error":"#NUM!"}]
[null,5,{"$error":"#NUM!"},{"$nulls":6},{"$error":"#NUM!"}]
[null,6,{"$error":"#NUM!"},{"$nulls":6},{"$f":"IF(C27=\"No\",0,I27)","v":{"$error":"#NUM!"}}]
[null,7,{"$f":"IF(MIN(IF(OR(ISBLANK(D28),ISBLANK(E28),ISBLANK(F28),ISBLANK(G28),ISBLANK(H28),ISBLANK(I28)),0,1),IF(OR(G28<MYstart,G28>MYend),0,1))=0,\"No\",\"Yes\")","v":{"$error":"#NUM!"}},{"$nulls":6},{"$f":"IF(C28=\"No\",0,I28)","v":{"$error":"#NUM!"}}]
[null,8,{"$f":"IF(MIN(IF(OR(ISBLANK(D29),ISBLANK(E29),ISBLANK(F29),ISBLANK(G29),ISBLANK(H29),ISBLANK(I29)),0,1),IF(OR(G29<MYstart,G29>MYend),0,1))=0,\"No\",\"Yes\")","v":{"$error":"#NUM!"}},{"$nulls":6},{"$f":"IF(C29=\"No\",0,I29)","v":{"$error":"#NUM!"}}]
[null,9,{"$f":"IF(MIN(IF(OR(ISBLANK(D30),ISBLANK(E30),ISBLANK(F30),ISBLANK(G30),ISBLANK(H30),ISBLANK(I30)),0,1),IF(OR(G30<MYstart,G30>MYend),0,1))=0,\"No\",\"Yes\")","v":{"$error":"#NUM!"}},{"$nulls":6},{"$f":"IF(C30=\"No\",0,I30)","v":{"$error":"#NUM!"}}]
[null,10,{"$error":"#NUM!"},{"$nulls":6},{"$error":"#NUM!"}]
[null,11,{"$f":"IF(MIN(IF(OR(ISBLANK(D32),ISBLANK(E32),ISBLANK(F32),ISBLANK(G32),ISBLANK(H32),ISBLANK(I32)),0,1),IF(OR(G32<MYstart,G32>MYend),0,1))=0,\"No\",\"Yes\")","v":{"$error":"#NUM!"}},{"$nulls":6},{"$f":"IF(C32=\"No\",0,I32)","v":{"$error":"#NUM!"}}]
[null,12,{"$error":"#NUM!"},{"$nulls":6},{"$error":"#NUM!"}]

{"sheet":"Alt Fuel Non-Road Eqpmt","index":6,"n_rows":25,"n_cols":9,"rows_kept":25,"merged":[[2,1,2,8],[3,2,3,8],[6,1,6,2],[6,4,6,7],[7,1,7,2],[7,4,7,7],[8,1,8,2],[8,4,8,8],[9,1,9,3],[11,1,11,2],[12,1,12,4]]}
[]
[null,"Non-Road Equipment Investments"]
[null,"Alternative fuel non-road equipment such as forklifts, tractors, and earth moving equipment. One credit is allocated for each $25,000 in investment up to a maximum of 5 credits."]
[null,null,"Fill out all green fields to receive credit. Dates outside the allowable time period will be highlighted"]
[]
[]
[null,"Total Investment in Eligible Equipment",null,{"$f":"IF(chk_nonroad_purchase=TRUE,SUM(I:I),0)","v":0},"Check the certification box to receive credit for this equipment"]
[null,"Investment Credits",null,{"$f":"MIN(ROUNDDOWN(D7/25000,0),5)","v":0}]
[{"$nulls":3},{"$f":"IF(D8=5,0,MIN(D7,125000)-D8*25000)","v":0}]
[]
[]
[null,"back to Annual Report Data sheet"]
[{"$nulls":5},true]
[null,"Non-Road Equipment","Eligible for Credit?","Description","Equipment is Operated on Alternative Fuel?","In-Service Date","Alternative Fuel Type","Investment Amount ($)","Total Investment in Eligible Equipment"]
[]
[null,1,{"$f":"IF(AND(ISBLANK(D16),ISBLANK(E16),ISBLANK(F16),ISBLANK(G16),ISBLANK(H16)),\"\",IF(MIN(IF(OR(ISBLANK(D16),ISBLANK(E16),ISBLANK(F16),ISBLANK(G16),ISBLANK(H16)),0,1),IF(OR(F16<MYstart,F16>MYend),0,1),IF(E16=\"No\",0,1))=0,\"No\",\"Yes\"))","v":""},{"$nulls":5},{"$f":"IF(C16=\"No\",0,H16)","v":0}]
[null,2,"",{"$nulls":5},0]
[null,3,"",{"$nulls":5},0]
[null,4,"",{"$nulls":5},0]
[null,5,"",{"$nulls":5},0]
[null,6,"",{"$nulls":5},0]
[null,7,{"$f":"IF(AND(ISBLANK(D22),ISBLANK(E22),ISBLANK(F22),ISBLANK(G22),ISBLANK(H22)),\"\",IF(MIN(IF(OR(ISBLANK(D22),ISBLANK(E22),ISBLANK(F22),ISBLANK(G22),ISBLANK(H22)),0,1),IF(OR(F22<MYstart,F22>MYend),0,1),IF(E22=\"No\",0,1))=0,\"No\",\"Yes\"))","v":""},{"$nulls":5},{"$f":"IF(C22=\"No\",0,H22)","v":0}]
[null,8,"",{"$nulls":5},0]
[null,9,"",{"$nulls":5},0]
[null,10,"",{"$nulls":5},0]

{"sheet":"Definitions","index":7,"n_rows":123,"n_cols":6,"rows_kept":123,"merged":[[100,2,100,5],[101,1,101,2],[121,1,122,1]]}
[]
[null,"Back to Annual Report"]
[]
[null,"Fleet ID Number","The Fleet ID assigned by the Vehicle Technologies Program when you registered the fleet. The Fleet ID is shown on your previous years' Standard Compliance Report."]
[]
[null,"Fleet Type","P - Alternative Fuel Provider, S - State Agency, B - Biodiesel Fuel Provider"]
[]
[null,"Parent Organization","Parent company name, if applicable, for fuel provider fleet or state name for state fleet"]
[]
[null,"POC ID Number","The POC ID assigned by the Vehicle Technologies Program when you registered. Log in to your account at http://standardcompliance.cttstest.nrel.gov/vehiclesandfuels/epact/state/progs/poc_login.html to obtain the number or, if you are not yet registered, create an account."]
[]
[null,"Banked Credits","Banked credits from previous years' reports. Credits for light duty AFVs and medium and heavy duty AFVs (after the requirement has been met) acquired in excess of the number required can be banked and applied to meet AFV acquisition requirements in future years. You can apply banked credits (if available) to meet this year's acquisition requirement."]
[]
[null,"Publicize Fleet","Click \"yes\" if you have banked credits you are willing to sell and wish to have your contact information published so that fleet managers wishing to buy credits may contact you."]
[]
[null,"Alternative Fuel Vehicles Acquired Prior to first reporting year","if this is your first year in which you have an annual reporting requirement, you may be able to obtain credit for alternative fuel vehicles you acquired before you were subject to reporting. Contact L-3 Communications to get information about filling out annual reports for previous years. "]
[]
[null,"Light Duty Vehicles Acquired","All non-excluded conventional fuel and alternative fuel vehicles with a Gross Vehicle Weight Rating (GVWR) of 8500 lbs or less acquired during the model year."]
[]
[null,"Reporting model year AFV acquisition requirement","The AFV acquisition requirement is calculated based on your input in the \"Fleet Type\" box. For state fleets, 75% of light duty vehicle acquisitions must be alternatively fueled. For all other fleets, the requirement is 90%."]
[]
[null,"Estimated credits to bank or Credits needed","If you have met the AFV acquisition requirement through the purchase of light duty AFVs, application of banked credits, and/or use of B100, this value is the estimated number or credits, including credits for acquisition of medium and heavy duty AFVs, that will be added to your banked credits for use in future years. If you have not met the AFV acquisition requirement through the purchase of light duty AFVs and use of B100, this value is the estimated number or credits you still need to meet the requirement"]
[]
[null,"Medium and Heavy Duty Alternative Fuel Vehicles","Alternative fuel vehicles with a Gross Vehicle Weight Rating > 8500 lbs. Acquisition of medium and heavy duty AFVs does not count toward meeting the AFV acquisition requirement. However, once the requirement has been met through the acquisition of light duty AFVs, use of biodiesel and/or application of banked credits, credits for acquisition of medium and heavy duty AFVs can be banked for use in future years."]
[]
[null,"Back to Light Duty AFVs"]
[]
[null,"LDV_Category_List","Suggested changes per NOPR 133.","Fuel Type List","Fuel Configuration","Credits"]
[null,"AHEV","Hybrid electric vehicle that can operate on alternative fuel. Note: Users would be instructed to select the fuel configuration \"dedicated\" if the vehicle operates exclusively on the alternative fuel, and \"dual\" if the vehicle can also use conventional fuel (either switching between fuels or operating on a mixture of alternative and conventional fuels).","Alternative fuel list","Dedicated, Dual"]
[null,"APHEV","Plug-in hybrid electric vehicle that can operate on alternative fuel for the non-electric portion of the fuel. See note above regarding selection of the Fuel Configuration. The user would be instructed to select the non-electric alternative fuel in the Fuel Types dropdown list.","Alternative fuel list excluding electricity","Dedicated, Dual"]
[null,"DPHEV","Plug-in hybrid electric vehicle that meets the NHTSA criteria for dual fueled electric automobile and exclusively uses conventional fuel for the non-electric portion of the fuel mix.","Electricity","Dual"]
[null,"ALDV","Non-electric light duty vehicle that can be fueled with alternative fuel. See note above regarding selection of the fuel configuration","Alternative fuel list excluding electricity","Dedicated, Dual"]
[null,"EV","Battery electric vehicle","Electricity","Dedicated"]
[null,"AFCEV","Fuel cell electric vehicle operating on an alternative fuel. Note that on-board reforming of natural gas would qualify as NG is an alternative fuel. Note: Users would be instructed to select \"dedicated\" if the vehicle operates exclusively on the alternative fuel, and \"dual\" if the vehicle can also use conventional fuel (either switching between fuels or operating on a mixture of alternative and conventional fuels).","Alternative fuel list","Dedicated, Dual"]
[null,"CFCEV","Fuel cell electric vehicle operating exclusively on conventional fuel. This vehicle would have an onboard reformer operating exclusively on conventional fuel (gasoline or diesel) and would not have the capability of using hydrogen from an external source. ","Conventional_fuels","N/A"]
[null,"HEV","Hybrid electric vehicle operated on gasoline or diesel. ","Conventional_fuels","N/A"]
[null,"PHEV","Plug-in hybrid electric vehicle that does not meet the NHTSA criteria for dual fueled electric automobile (Less than 10.2 effective electric-only range)","Conventional_fuels","N/A"]
[null,"NEV","Neighborhood electric vehicle. Low speed electric vehicle that does not qualify as a light duty vehicle.","Electricity","Dedicated"]
[]
[null,"Alternative Fuels","E85 - Mixtures containing 85% by volume of denatured ethanol with gasoline"]
[null,null,"M85 - Mixtures containing 85% by volume of methanol or other alcohols with gasoline"]
[null,null,"CNG - Compressed Natural Gas"]
[null,null,"LPG - Liquified Petroleum Gas (Propane)"]
[null,null,"Elec - Electricity"]
[null,null,"LNG - Liquified Natural Gas and other fuels domestically produced from natural gas"]
[null,null,"Other Bio-derived Fuels - Fuels (other than alcohol) derived from biological materials (including neat biodiesel (B100))"]
[null,null,"Hydr - Hydrogen"]
[null,null,"Pser - P-Series blends"]
[null,null,"PetLiq - Coal derived liquid fuels"]
[]
[]
[null,"Back to Med/Hvy Duty AFVs"]
[]
[null,"Vehicle Categories (Medium and Heavy Duty Vehicles)","Suggested changes per NOPR 133.","Fuel Type List","Fuel Configuration","Credits"]
[null,"AHEV_H","Hybrid electric vehicle that can operate on alternative fuel. Note: Users would be instructed to select the fuel configuration \"dedicated\" if the vehicle operates exclusively on the alternative fuel, and \"dual\" if the vehicle can also use conventional fuel (either switching between fuels or operating on a mixture of alternative and conventional fuels).","Alternative fuel list","Dedicated, Dual"]
[null,"APHEV_H","Plug-in hybrid electric vehicle that can operate on alternative fuel for the non-electric portion of the fuel. See note above regarding selection of the Fuel Configuration. The user would be instructed to select the non-electric alternative fuel in the Fuel Types dropdown list.","Alternative fuel list excluding electricity","Dedicated, Dual"]
[null,"DPHEV_H","Plug-in hybrid electric vehicle that meets the NHTSA criteria for dual fueled electric automobile (10.2 mile effective electric-only range) and exclusively uses conventional fuel for the non-electric portion of the fuel mix.","Electricity","Dual"]
[null,"ALDV_H","Non-electric medium or heavy duty vehicle that can be fueled with alternative fuel. See note above regarding selection of the fuel configuration","Alternative fuel list excluding electricity","Dedicated, Dual"]
[null,"EV_H","Battery electric vehicle","Electricity","Dedicated"]
[null,"AFCEV_H","Fuel cell electric vehicle operating on an alternative fuel. Note that on-board reforming of natural gas would qualify as NG is an alternative fuel. Note: Users would be instructed to select \"dedicated\" if the vehicle operates exclusively on the alternative fuel, and \"dual\" if the vehicle can also use conventional fuel (either switching between fuels or operating on a mixture of alternative and conventional fuels).","Alternative fuel list","Dedicated, Dual"]
[null,"CFCEV_H","Fuel cell electric vehicle operating exclusively on conventional fuel. This vehicle would have an onboard reformer operating exclusively on conventional fuel (gasoline or diesel) and would not have the capability of using hydrogen from an external source. ","Conventional_fuels","N/A"]
[null,"HEV_H","Hybrid electric vehicle operated on gasoline or diesel. ","Conventional_fuels","N/A"]
[null,"PHEV_H","Plug-in hybrid electric vehicle that does not meet the NHTSA criteria for dual fueled electric automobile (Less than 10.2 effective electric-only range)","Conventional_fuels","N/A"]
[]
[null,"Alternative Fuels","E85 - Mixtures containing 85% by volume of denatured ethanol with gasoline"]
[null,null,"M85 - Mixtures containing 85% by volume of methanol or other alcohols with gasoline"]
[null,null,"CNG - Compressed Natural Gas"]
[null,null,"LPG - Liquified Petroleum Gas (Propane)"]
[null,null,"Elec - Electricity"]
[null,null,"LNG - Liquified Natural Gas and other fuels domestically produced from natural gas"]
[null,null,"Other Bio-derived Fuels - Fuels (other than alcohol) derived from biological materials (including neat biodiesel (B100))"]
[null,null,"Hydr - Hydrogen"]
[null,null,"Pser - P-Series blends"]
[null,null,"PetLiq - Coal derived liquid fuels"]
[]
[]
[]
[null,"Back to Emerging Technology Vehicles"]
[]
[null,"Emerging Technology Vehicles","Must be one of the electric drive vehicle types listed below. May receive 1 credit for acquisition if they also qualify as an AFV, or the appropriate fractional credit if they do not qualify as an AFV"]
[]
[null,"Number of credits available for emerging technology vehicles","Credits for emerging technology vehicles may be based on vehicle acquisition or on investment, but not both. Investments in pre-production versions of the five vehicle types earn 1 credit per $25,000 invested up to a maximum of 5 credits. There is no limit on the number of credits that may be obtained by basing the number of credits on acquisition rather than investment. Under this approach, as an example, a covered fleet spending $500,000 on the acquisition of 10 pre-production\nPHEVs (i.e., $50,000 per PHEV) could obtain a total of 12 credits; 5 credits for the expenditure of at least $125,000 to acquire three of the vehicles and 7 credits for the acquisition of the other seven PHEVs. In the above example, if the subject vehicles instead were pre- production non-AFV PHEVs, then the fleet would receive the same 5 credits for the investment of the $125,000, plus another 3.5 credits (7 × 1⁄2 credit, subject to rounding rules when totaled) for the remaining seven vehicles."]
[]
[null,"Emerging Technology Vehicle Category Codes","Suggested changes per NOPR 133.","Fuel Type List","Fuel Configuration","Credits"]
[null,"E-AHEV","Hybrid electric vehicle that can operate on alternative fuel. Note: Select the fuel configuration \"dedicated\" if the vehicle operates exclusively on the alternative fuel, and \"dual\" if the vehicle can also use conventional fuel (either switching between fuels or operating on a mixture of alternative and conventional fuels).","Alternative Fuel List","Dedicated or dual"]
[null,"E-APHEV","Plug-in hybrid electric vehicle that can operate on alternative fuel for the non-electric portion of the fuel. See note above regarding selection of the Fuel Configuration. Select the non-electric alternative fuel in the Fuel Types dropdown list.","Alternative Fuel List","Dedicated or dual"]
[null,"E-DPHEV","Plug-in hybrid electric vehicle that meets the NHTSA criteria for dual fueled electric automobile and exclusively uses conventional fuel for the non-electric portion of the fuel mix.","Electricity","dual"]
[null,"E-EV","Battery electric vehicle","Electricity","Dedicated"]
[null,"E-AFCEV","Fuel cell electric vehicle operating on an alternative fuel. Note that on-board reforming of natural gas would qualify as NG is an alternative fuel. Note: Select \"dedicated\" if the vehicle operates exclusively on the alternative fuel, and \"dual\" if the vehicle can also use conventional fuel (either switching between fuels or operating on a mixture of alternative and conventional fuels).","Alternative Fuel List","Dedicated or dual"]
[null,"E-HEV","Hybrid electric vehicle operated on gasoline or diesel. ","Conventional_fuels","N/A"]
[null,"E-PHEV","Plug-in hybrid electric vehicle that does not meet the NHTSA criteria for dual fueled electric automobile (Less than 10.2 electric-only range)","Conventional_fuels","N/A"]
[null,"E-NEV","Neighborhood electric vehicle. Low speed electric vehicle that does not qualify as a light duty vehicle.","Electricity","Dedicated"]
[null,"E-AHEV_H","Medium or heavy duty hybrid electric vehicle that can operate on alternative fuel.","Alternative Fuel List","Dedicated or dual"]
[null,"E-APHEV_H","Medium or heavy duty Plug-in hybrid electric vehicle that can operate on alternative fuel.","Alternative Fuel List","Dedicated or dual"]
[null,"E-DPHEV_H","Medium or heavy duty plug-in hybrid electric vehicle that meets the NHTSA criteria for dual fueled electric automobile.","Electricity","dual"]
[null,"E-EV_H","Medium or heavy duty battery electric vehicle","Electricity","Dedicated"]
[null,"E-AFCEV_H","Medium or heavy duty fuel cell electric vehicle operating on an alternative fuel. Note that on-board reforming of natural gas would qualify as NG is an alternative fuel","Alternative Fuel List","Dedicated or dual"]
[null,"E-HEV_H","Medium or heavy duty hybrid electric vehicle operated on gasoline or diesel.","Conventional_fuels","N/A"]
[null,"E-PHEV_H","Medium or heavy duty plug-in hybrid electric vehicle that does not meet the NHTSA criteria for dual fueled electric automobile (Less than 10.2 electric-only range)","Conventional_fuels","N/A"]
[]
[null,"Investment or Acquisition","Select \"Acquisition\" to base credit on the vehicle type (see column C for the value). Select \"Investment\" to base credit on investment. Credits based on investment can be pooled to reach the $25,000 per credit value."]
[null,"back to Refueling Infrastructure"]
[]
[null,"In-Service Date","The infrastructure must begin operation during the model year for which credit is sought, and each fleet is limited to one award of credits per site, per model year. For example, if a covered fleet’s infrastructure investment spans more than one year, with the fleet having invested $12,500 in a new AFV fueling station during one model year and then an additional $12,500 in that station during the following model year, and with the new station becoming operational during that second year, the fleet would be entitled to 1 investment credit in the second model year. "]
{"$rows_empty":17}
[null,"Engine Configuration Codes","Ded - Dedicated fuel"]
[null,null,"Dual - Dual Fuel/Bi-Fuel (can switch between fuels, eg, CNG/Gasoline) or Flex Fuel (operates on mix of fuels, eg, alcohols/gasoline)"]

{"sheet":"Lists","index":8,"n_rows":57,"n_cols":30,"rows_kept":57,"merged":[[2,1,2,2],[2,9,2,10],[15,1,15,5]]}
[null,null,"added"]
[]
[null,"LDV_Category_Codes",{"$nulls":7},"Fuel Type Lists"]
[null,"LDV_Category_List","Suggested changes per NOPR 133.","Fuel Type List","Fuel Configuration","Credits",{"$nulls":3},"Fuel_Types","All alternative fuels",null,null,"Fuel_Configuration",null,null,"Conversion_Mode",{"$nulls":5},"Fleet_Types",{"$nulls":4},"States",null,"Make"]
[null,"AHEV","Hybrid electric vehicle that can operate on alternative fuel. Note: Users would be instructed to select the fuel configuration \"dedicated\" if the vehicle operates exclusively on the alternative fuel, and \"dual\" if the vehicle can also use conventional fuel (either switching between fuels or operating on a mixture of alternative and conventional fuels).","Fuel_Types","Fuel_Configuration",{"$nulls":4},"E85","Mixtures containing 85% by volume of methanol, denatured ethanol, and other alcohols with gasoline",null,null,"Ded","Dedicated Fuel",null,"OEM","Original Equipment Manufacturer",{"$nulls":4},"P","Alternative Fuel Provider",{"$nulls":3},"AL"]
[null,"APHEV","Plug-in hybrid electric vehicle that can operate on alternative fuel for the non-electric portion of the fuel. See note above regarding selection of the Fuel Configuration. The user would be instructed to select the non-electric alternative fuel in the Fuel Types dropdown list.","SE_Fuel_Types","Fuel_Configuration",{"$nulls":4},"M85","Mixtures containing 85% or more by volume of methanol or other alcohols with gasoline or other fuel.",null,null,"Dual","Dual Fuel/Bi-Fuel (can switch between fuels, eg, CNG/Gasoline)",null,"Pcon","Previously Converted by Another Owner",{"$nulls":4},"S","State Agency",{"$nulls":3},"AK",null,"Acura"]
[null,"DPHEV","Plug-in hybrid electric vehicle that meets the NHTSA criteria for dual fueled electric automobile (10.2 mile effective electric-only range) and exclusively uses conventional fuel for the non-electric portion of the fuel mix.","Electricity","Dual",{"$nulls":4},"CNG","Compressed Natural Gas",{"$nulls":5},"Scon","Self Converted by Present Owner",{"$nulls":4},"B","Biodiesel Fuel Provider",{"$nulls":3},"AZ",null,"Aston Martin"]
[null,"ALDV","Non-electric light duty vehicle that can be fueled with alternative fuel. See note above regarding selection of the fuel configuration","SE_Fuel_Types","Fuel_Configuration",{"$nulls":4},"LPG","Liquified Petroleum Gas (Propane)",{"$nulls":16},"AR",null,"Audi"]
[null,"EV","Battery electric vehicle","Electricity","Dedicated",{"$nulls":4},"LNG","Liquified Natural Gas and other fuels domestically produced from natural gas",null,null,"Dedicated",{"$nulls":8},"Transfer_Types",{"$nulls":4},"CA",null,"Azure Dynamics"]
[null,"AFCEV","Fuel cell electric vehicle operating on an alternative fuel. Note that on-board reforming of natural gas would qualify as NG is an alternative fuel. Note: Users would be instructed to select \"dedicated\" if the vehicle operates exclusively on the alternative fuel, and \"dual\" if the vehicle can also use conventional fuel (either switching between fuels or operating on a mixture of alternative and conventional fuels).","Fuel_Types","Fuel_Configuration",{"$nulls":4},"Elec","Electricity",null,null,"Ded","Dedicated Fuel",{"$nulls":7},"This credit transfer has been approved",{"$nulls":4},"CO",null,"Bentley"]
[null,"CFCEV","Fuel cell electric vehicle operating exclusively on conventional fuel. This vehicle would have an onboard reformer operating exclusively on conventional fuel (gasoline or diesel) and would not have the capability of using hydrogen from an external source. ","Conventional_fuels","Conv_Configuration",{"$nulls":4},"Hydr","Hydrogen",{"$nulls":11},"A Proof of Credit Transfer form has been submitted for this transfer",{"$nulls":4},"CT",null,"BMW"]
[null,"HEV","Hybrid electric vehicle operated on gasoline or diesel. ","Conventional_fuels","Conv_Configuration",{"$nulls":4},"Other Bio-derived Fuels","Fuels (other than alcohol) derived from biological materials (including neat biodiesel (B100))",null,null,"dual",{"$nulls":8},"I intend to complete a credit transfer with another fleet",{"$nulls":4},"DE",null,"Bugatti"]
[null,"PHEV","Plug-in hybrid electric vehicle that does not meet the NHTSA criteria for dual fueled electric automobile (Less than 10.2 effective electric-only range)","Conventional_fuels","Conv_Configuration",{"$nulls":4},"Pser","Three P-series fuels (specifically known as Pure Regular, Pure Premium and Pure Cold Weather) as described by United States Patent number 5,697,987, dated December 16, 1997, and containing at least 60 percent non-petroleum energy content derived from methyltetrahydrofuran, which must be manufactured solely from biological materials, and ethanol, which must be manufactured solely from biological materials",null,null,"Dual","Dual Fuel/Bi-Fuel (can switch between fuels, eg, CNG/Gasoline) or Flex Fuel (operates on mix of fuels, eg, alcohols/gasoline)",{"$nulls":12},"DC",null,"Buick"]
[null,"NEV","Neighborhood electric vehicle. Low speed electric vehicle that does not qualify as a light duty vehicle.","Electricity","Dedicated",{"$nulls":4},"PetLiq","Coal-derived liquid fuels",{"$nulls":16},"FL",null,"Cadillac"]
[{"$nulls":27},"GA",null,"Chevrolet"]
[null,"MHV_Category_Codes",{"$nulls":25},"HI",null,"Chrysler"]
[null,"MHV_Category_List","Suggested changes per NOPR 133.","Fuel Type List","Fuel Configuration","Credits (obtained after satisfying requirements)",{"$nulls":18},"LightDuty_Indicator",null,null,"ID",null,"CODA Automotive"]
[null,"AHEV_H","Hybrid electric vehicle that can operate on alternative fuel. Note: Users would be instructed to select the fuel configuration \"dedicated\" if the vehicle operates exclusively on the alternative fuel, and \"dual\" if the vehicle can also use conventional fuel (either switching between fuels or operating on a mixture of alternative and conventional fuels).","Fuel_Types","Fuel_Configuration",{"$nulls":19},"Y","Gross Vehicle Weight < or = to 8500 lbs.",null,"IL",null,"Dodge"]
[null,"APHEV_H","Plug-in hybrid electric vehicle that can operate on alternative fuel for the non-electric portion of the fuel. See note above regarding selection of the Fuel Configuration. The user would be instructed to select the non-electric alternative fuel in the Fuel Types dropdown list.","SE_Fuel_Types","Fuel_Configuration",{"$nulls":4},"Conventional_fuels",{"$nulls":14},"N","Gross Vehicle Weight > 8500 lbs. ",null,"IN",null,"Ferrari"]
[null,"DPHEV_H","Plug-in hybrid electric vehicle that meets the NHTSA criteria for dual fueled electric automobile (10.2 mile effective electric-only range) and exclusively uses conventional fuel for the non-electric portion of the fuel mix.","Electricity","Dual",{"$nulls":4},"Gasoline",{"$nulls":17},"IA",null,"Fiat"]
[null,"ALDV_H","Non-electric medium or heavy duty vehicle that can be fueled with alternative fuel. See note above regarding selection of the fuel configuration","SE_Fuel_Types","Fuel_Configuration",{"$nulls":4},"Diesel",{"$nulls":17},"KS",null,"Ford"]
[null,"EV_H","Battery electric vehicle","Electricity","Dedicated",{"$nulls":22},"KY",null,"GMC"]
[null,"AFCEV_H","Fuel cell electric vehicle operating on an alternative fuel. Note that on-board reforming of natural gas would qualify as NG is an alternative fuel. Note: Users would be instructed to select \"dedicated\" if the vehicle operates exclusively on the alternative fuel, and \"dual\" if the vehicle can also use conventional fuel (either switching between fuels or operating on a mixture of alternative and conventional fuels).","Fuel_Types","Fuel_Configuration",{"$nulls":4},"Electricity",{"$nulls":17},"LA",null,"Honda"]
[null,"CFCEV_H","Fuel cell electric vehicle operating exclusively on conventional fuel. This vehicle would have an onboard reformer operating exclusively on conventional fuel (gasoline or diesel) and would not have the capability of using hydrogen from an external source. ","Conventional_fuels","Conv_Configuration",{"$nulls":4},"Elec",{"$nulls":17},"ME",null,"Hyundai"]
[null,"HEV_H","Hybrid electric vehicle operated on gasoline or diesel. ","Conventional_fuels","Conv_Configuration",{"$nulls":22},"MT",null,"Infiniti"]
[null,"PHEV_H","Plug-in hybrid electric vehicle that does not meet the NHTSA criteria for dual fueled electric automobile (Less than 10.2 effective electric-only range)","Conventional_fuels","Conv_Configuration",{"$nulls":4},"Conv_Configuration",{"$nulls":17},"NE",null,"Jaguar"]
[{"$nulls":9},"N/A",{"$nulls":17},"NV",null,"Jeep"]
[{"$nulls":27},"NH",null,"Kia"]
[null,"ETV_Category_Codes","5 vehicle types listed by DOE",{"$nulls":6},"SE_Fuel_Types","Alternative fuels other than electricity",{"$nulls":16},"NJ",null,"Lamborghini"]
[null,"FCEV","Fuel cell electric vehicle",{"$nulls":6},"E85","Mixtures containing 85% by volume of methanol, denatured ethanol, and other alcohols with gasoline",{"$nulls":16},"NM",null,"Land Rover"]
[null,"HEV","Hybrid electric vehicle",{"$nulls":6},"CNG","Compressed Natural Gas",{"$nulls":16},"NY",null,"Lexus"]
[null,"HVEV","Medium or heavy duty electric vehicle",{"$nulls":6},"LPG","Liquified Petroleum Gas (Propane)",{"$nulls":16},"NC",null,"Lincoln"]
[null,"NEV","Neighborhood electric vehicle",{"$nulls":6},"LNG","Liquified Natural Gas",{"$nulls":18},"Lotus"]
[null,"PHEV","Plug-in electric drive vehicle",{"$nulls":6},"Hydr","Hydrogen",{"$nulls":16},"ND",null,"Maserati"]
[{"$nulls":9},"B100","Biodiesel 100% or other non-alcohol derived from biological materials",{"$nulls":16},"OH",null,"Maybach"]
[null,"LD_ETV_Category_List","Suggested changes per NOPR 133.","Fuel Type List","Fuel Configuration","Credits",{"$nulls":3},"Pser","P-Series blends",{"$nulls":16},"OK",null,"Mazda"]
[null,"E-AHEV","Hybrid electric vehicle that can operate on alternative fuel. Note: Users would be instructed to select the fuel configuration \"dedicated\" if the vehicle operates exclusively on the alternative fuel, and \"dual\" if the vehicle can also use conventional fuel (either switching between fuels or operating on a mixture of alternative and conventional fuels).","Fuel_Types","Fuel_Configuration",{"$nulls":4},"M100","100% methanol",{"$nulls":16},"OR",null,"McLaren Automotive"]
[null,"E-APHEV","Plug-in hybrid electric vehicle that can operate on alternative fuel for the non-electric portion of the fuel. See note above regarding selection of the Fuel Configuration. The user would be instructed to select the non-electric alternative fuel in the Fuel Types dropdown list.","Fuel_Types","Fuel_Configuration",{"$nulls":4},"Ethanol","Denatured ethanol or other alcohols",{"$nulls":16},"MD",null,"Mercedes-Benz"]
[null,"E-DPHEV","Plug-in hybrid electric vehicle that meets the NHTSA criteria for dual fueled electric automobile (10.2 mile effective electric-only range) and exclusively uses conventional fuel for the non-electric portion of the fuel mix.","Electricity","Dual",{"$nulls":4},"PetLiq","Coal derived liquid fuels",{"$nulls":16},"MA",null,"MINI"]
[null,"E-EV","Battery electric vehicle","Electricity","Dedicated",{"$nulls":22},"MI",null,"Mitsubishi"]
[null,"E-AFCEV","Fuel cell electric vehicle operating on an alternative fuel. Note that on-board reforming of natural gas would qualify as NG is an alternative fuel. Note: Users would be instructed to select \"dedicated\" if the vehicle operates exclusively on the alternative fuel, and \"dual\" if the vehicle can also use conventional fuel (either switching between fuels or operating on a mixture of alternative and conventional fuels).","Fuel_Types","Fuel_Configuration",{"$nulls":22},"MN",null,"Nissan"]
[null,"E-HEV","Hybrid electric vehicle operated on gasoline or diesel. ","Conventional_fuels","Conv_Configuration",{"$nulls":22},"MS",null,"Porsche"]
[null,"E-PHEV","Plug-in hybrid electric vehicle that does not meet the NHTSA criteria for dual fueled electric automobile (Less than 10.2 effective electric-only range)","Conventional_fuels","Conv_Configuration",{"$nulls":22},"MO",null,"Ram"]
[null,"E-NEV","Neighborhood electric vehicle. Low speed electric vehicle that does not qualify as a light duty vehicle.","Electricity","Dedicated",{"$nulls":22},"PA",null,"Rolls-Royce"]
[null,"E-AHEV_H","Medium or heavy duty hybrid electric vehicle that can operate on alternative fuel.","Fuel_Types","Fuel_Configuration",{"$nulls":22},"RI",null,"Roush Performance"]
[null,"E-APHEV_H","Medium or heavy duty Plug-in hybrid electric vehicle that can operate on alternative fuel.","Fuel_Types","Fuel_Configuration"]
[null,"E-DPHEV_H","Medium or heavy duty plug-in hybrid electric vehicle that meets the NHTSA criteria for dual fueled electric automobile.","Electricity","Dual",{"$nulls":22},"SC",null,"Saab"]
[null,"E-EV_H","Medium or heavy duty battery electric vehicle","Electricity","Dedicated",{"$nulls":22},"SD",null,"Scion"]
[null,"E-AFCEV_H","Medium or heavy duty fuel cell electric vehicle operating on an alternative fuel. Note that on-board reforming of natural gas would qualify as NG is an alternative fuel","Fuel_Types","Fuel_Configuration",{"$nulls":22},"TN",null,"smart"]
[null,"E-HEV_H","Medium or heavy duty hybrid electric vehicle operated on gasoline or diesel.","Conventional_fuels","Conv_Configuration",{"$nulls":22},"TX",null,"Subaru"]
[null,"E-PHEV_H","Medium or heavy duty plug-in hybrid electric vehicle that does not meet the NHTSA criteria for dual fueled electric automobile (Less than 10.2 effective electric-only range)","Conventional_fuels","Conv_Configuration",{"$nulls":22},"UT",null,"Suzuki"]
[{"$nulls":27},"VT",null,"Toyota"]
[{"$nulls":27},"VA",null,"Volkswagen"]
[{"$nulls":27},"WA",null,"Volvo"]
[{"$nulls":27},"WV",null,"VPG"]
[{"$nulls":27},"WI"]
[{"$nulls":27},"WY"]